[Event "*** Titled Tuesday Blitz"]
[Site "Chess.com"]
[Date "2020.03.03"]
[Round "3"]
[White "szefru"]
[Black "Thunderbolt1909"]
[Result "0-1"]
[WhiteElo "2159"]
[BlackElo "2394"]
[TimeControl "180+1"]
[EndTime "9:30:30 PST"]
[Termination "Thunderbolt1909 won by checkmate"]

1. Nf3 {[%clk 0:03:00.9]} 1... d5 {[%clk 0:02:58.6]} 2. d4 {[%clk 0:03:00.8]}
2... Nf6 {[%clk 0:02:56.9]} 3. c4 {[%clk 0:03:00.9]} 3... c6 {[%clk 0:02:56.9]}
4. Nc3 {[%clk 0:03:01.4]} 4... e6 {[%clk 0:02:57.3]} 5. Bf4 {[%clk 0:03:01]}
5... dxc4 {[%clk 0:02:55.5]} 6. e3 {[%clk 0:03:00.3]} 6... b5 {[%clk 0:02:53.3]}
7. Ne5 {[%clk 0:03:00]} 7... Bb7 {[%clk 0:02:34.3]} 8. Be2 {[%clk 0:02:54.5]}
8... Nbd7 {[%clk 0:02:31]} 9. O-O {[%clk 0:02:49]} 9... Nd5 {[%clk 0:02:14.8]}
10. Ne4 {[%clk 0:02:42.4]} 10... Nxf4 {[%clk 0:02:02]} 11. exf4 {[%clk
0:02:40.2]} 11... Nxe5 {[%clk 0:01:33.5]} 12. fxe5 {[%clk 0:02:41.1]} 12... Qb6
{[%clk 0:01:29.9]} 13. Qd2 {[%clk 0:02:36.9]} 13... O-O-O {[%clk 0:01:19.7]} 14.
Rfd1 {[%clk 0:02:31.4]} 14... c5 {[%clk 0:01:14.3]} 15. Ng5 {[%clk 0:02:21.2]}
15... Rxd4 {[%clk 0:01:09.4]} 16. Qe3 {[%clk 0:02:17.8]} 16... Qc7 {[%clk
0:01:04.2]} 17. Rxd4 {[%clk 0:02:10.3]} 17... cxd4 {[%clk 0:01:05.1]} 18. Qxd4
{[%clk 0:02:10]} 18... Bc5 {[%clk 0:01:04.6]} 19. Qf4 {[%clk 0:02:09.7]} 19...
h6 {[%clk 0:00:36.6]} 20. Nxf7 {[%clk 0:02:03.1]} 20... Rf8 {[%clk 0:00:36]} 21.
Bh5 {[%clk 0:02:03.2]} 21... Bd5 {[%clk 0:00:35.5]} 22. Rd1 {[%clk 0:01:55.8]}
22... Kb7 {[%clk 0:00:31.8]} 23. a3 {[%clk 0:01:31.7]} 23... a5 {[%clk 0:00:31]}
24. Rxd5 {[%clk 0:01:16]} 24... exd5 {[%clk 0:00:30.4]} 25. Qf5 {[%clk
0:01:15.2]} 25... Kb6 {[%clk 0:00:24.6]} 26. e6 {[%clk 0:01:14.8]} 26... d4
{[%clk 0:00:21]} 27. Qd5 {[%clk 0:01:13.9]} 27... Qc6 {[%clk 0:00:17.4]} 28. Qe5
{[%clk 0:01:01.3]} 28... d3 {[%clk 0:00:15.9]} 29. e7 {[%clk 0:00:57.6]} 29...
Re8 {[%clk 0:00:14.4]} 30. Bf3 {[%clk 0:00:47.1]} 30... Rxe7 {[%clk 0:00:06.7]}
31. Qb8+ {[%clk 0:00:46.5]} 31... Rb7 {[%clk 0:00:06.3]} 32. Qd8+ {[%clk
0:00:41.4]} 32... Qc7 {[%clk 0:00:06.2]} 33. Qd5 {[%clk 0:00:24.7]} 33... Rb8
{[%clk 0:00:06.1]} 34. Ne5 {[%clk 0:00:22.9]} 34... Rd8 {[%clk 0:00:05.5]} 35.
Qe4 {[%clk 0:00:21.5]} 35... Rd6 {[%clk 0:00:05.6]} 36. h4 {[%clk 0:00:19.2]}
36... d2 {[%clk 0:00:06]} 37. Bd1 {[%clk 0:00:18.8]} 37... Rd4 {[%clk
0:00:05.3]} 38. Qf5 {[%clk 0:00:16.7]} 38... Rd5 {[%clk 0:00:05.4]} 39. Qe6+
{[%clk 0:00:12.9]} 39... Qd6 {[%clk 0:00:04.1]} 40. Qc8 {[%clk 0:00:10.8]} 40...
Rxe5 {[%clk 0:00:03.7]} 41. Qg4 {[%clk 0:00:09.1]} 41... Re1# {[%clk 0:00:04.6]}
0-1

[Event "*** Titled Tuesday Blitz"]
[Site "Chess.com"]
[Date "2020.03.03"]
[Round "3"]
[White "DACF2905"]
[Black "Alopekos"]
[Result "0-1"]
[WhiteElo "2218"]
[BlackElo "2473"]
[TimeControl "180+1"]
[EndTime "9:30:38 PST"]
[Termination "Alopekos won on time"]

1. c4 {[%clk 0:02:33.8]} 1... g6 {[%clk 0:02:59.1]} 2. Nc3 {[%clk 0:02:32.4]}
2... Bg7 {[%clk 0:02:59.2]} 3. d4 {[%clk 0:02:31.9]} 3... d6 {[%clk 0:02:57.5]}
4. Nf3 {[%clk 0:02:31.6]} 4... Nf6 {[%clk 0:02:49.7]} 5. g3 {[%clk 0:02:31.4]}
5... O-O {[%clk 0:02:49.4]} 6. Bg2 {[%clk 0:02:31.2]} 6... Nc6 {[%clk
0:02:47.3]} 7. O-O {[%clk 0:02:30.8]} 7... e5 {[%clk 0:02:45.9]} 8. dxe5 {[%clk
0:02:28.6]} 8... dxe5 {[%clk 0:02:46.8]} 9. Qxd8 {[%clk 0:02:26.6]} 9... Rxd8
{[%clk 0:02:46.2]} 10. Bg5 {[%clk 0:02:27.1]} 10... Be6 {[%clk 0:02:39.3]} 11.
b3 {[%clk 0:02:25.4]} 11... h6 {[%clk 0:02:28.2]} 12. Bxf6 {[%clk 0:02:24.2]}
12... Bxf6 {[%clk 0:02:29.1]} 13. e4 {[%clk 0:02:23.1]} 13... Nd4 {[%clk
0:02:18.9]} 14. Nd5 {[%clk 0:02:21.1]} 14... Bxd5 {[%clk 0:02:11.4]} 15. cxd5
{[%clk 0:02:18.6]} 15... c6 {[%clk 0:01:53.9]} 16. dxc6 {[%clk 0:02:08.4]} 16...
bxc6 {[%clk 0:01:48.1]} 17. Rfd1 {[%clk 0:02:03.6]} 17... c5 {[%clk 0:01:45.5]}
18. Nd2 {[%clk 0:01:59.8]} 18... Ne2+ {[%clk 0:01:43.5]} 19. Kf1 {[%clk
0:01:57.2]} 19... Nc3 {[%clk 0:01:43.2]} 20. Rdc1 {[%clk 0:01:57.2]} 20... Rxd2
{[%clk 0:01:29]} 21. Rxc3 {[%clk 0:01:56.3]} 21... Rc8 {[%clk 0:01:25.7]} 22.
Rac1 {[%clk 0:01:52.5]} 22... Rxa2 {[%clk 0:01:22.1]} 23. Rxc5 {[%clk
0:01:51.9]} 23... Rd8 {[%clk 0:01:09.7]} 24. Rc8 {[%clk 0:01:48]} 24... Kf8
{[%clk 0:01:05.3]} 25. Rxd8+ {[%clk 0:01:46.8]} 25... Bxd8 {[%clk 0:01:06.2]}
26. Rc8 {[%clk 0:01:29]} 26... Ke7 {[%clk 0:01:05.1]} 27. Bh3 {[%clk 0:01:25.7]}
27... Bb6 {[%clk 0:01:01.6]} 28. Rc6 {[%clk 0:01:16.6]} 28... Rxf2+ {[%clk
0:00:55.8]} 29. Ke1 {[%clk 0:00:23.9]} 29... Rxh2 {[%clk 0:00:54.1]} 30. Bc8
{[%clk 0:00:23.6]} 30... Rb2 {[%clk 0:00:44.5]} 31. Ba6 {[%clk 0:00:17.4]} 31...
Rxb3 {[%clk 0:00:40.9]} 32. Bc4 {[%clk 0:00:17.3]} 32... Rxg3 {[%clk 0:00:38.9]}
33. Bd5 {[%clk 0:00:15.5]} 33... Rg2 {[%clk 0:00:35]} 34. Rc8 {[%clk 0:00:14.2]}
34... h5 {[%clk 0:00:32.9]} 35. Rb8 {[%clk 0:00:14]} 35... Rc2 {[%clk
0:00:20.6]} 36. Rb7+ {[%clk 0:00:13.8]} 36... Rc7 {[%clk 0:00:20.4]} 37. Rb8
{[%clk 0:00:13.9]} 37... h4 {[%clk 0:00:19.9]} 38. Ke2 {[%clk 0:00:12.2]} 38...
Kf6 {[%clk 0:00:18]} 39. Kf3 {[%clk 0:00:12]} 39... Rc3+ {[%clk 0:00:16.1]} 40.
Kg4 {[%clk 0:00:11.3]} 40... g5 {[%clk 0:00:15.1]} 41. Rf8 {[%clk 0:00:08.6]}
41... Rg3+ {[%clk 0:00:13.9]} 42. Kh5 {[%clk 0:00:08.4]} 42... Ke7 {[%clk
0:00:10.3]} 43. Rxf7+ {[%clk 0:00:08.3]} 43... Kd6 {[%clk 0:00:10.5]} 44. Rf6+
{[%clk 0:00:08.1]} 44... Kc5 {[%clk 0:00:10.4]} 45. Re6 {[%clk 0:00:08.1]} 45...
Kd4 {[%clk 0:00:09.4]} 46. Rh6 {[%clk 0:00:06.9]} 46... h3 {[%clk 0:00:08.6]}
47. Kg6 {[%clk 0:00:06.8]} 47... g4 {[%clk 0:00:07.5]} 48. Kf5 {[%clk
0:00:06.7]} 48... Rg2 {[%clk 0:00:07]} 49. Bc6 {[%clk 0:00:05.1]} 49... h2
{[%clk 0:00:06]} 50. Rd6+ {[%clk 0:00:04.7]} 50... Kc5 {[%clk 0:00:05.9]} 51.
Rh6 {[%clk 0:00:04.2]} 51... h1=Q {[%clk 0:00:05.7]} 52. Rxh1 {[%clk 0:00:01.2]}
52... Kxc6 {[%clk 0:00:06.3]} 53. Kxe5 {[%clk 0:00:02.1]} 53... Re2 {[%clk
0:00:05.1]} 54. Kf5 {[%clk 0:00:01.7]} 54... g3 {[%clk 0:00:03.9]} 0-1

[Event "*** Titled Tuesday Blitz"]
[Site "Chess.com"]
[Date "2020.03.03"]
[Round "3"]
[White "dusanacns"]
[Black "youngKID"]
[Result "0-1"]
[WhiteElo "2676"]
[BlackElo "2852"]
[TimeControl "180+1"]
[EndTime "9:30:39 PST"]
[Termination "youngKID won on time"]

1. e4 {[%clk 0:03:00.9]} 1... e5 {[%clk 0:02:58.3]} 2. Nf3 {[%clk 0:02:59.4]}
2... Nc6 {[%clk 0:02:57.9]} 3. Bc4 {[%clk 0:02:56.1]} 3... Nf6 {[%clk
0:02:57.2]} 4. d3 {[%clk 0:02:55.9]} 4... h6 {[%clk 0:02:57]} 5. c3 {[%clk
0:02:23.6]} 5... d6 {[%clk 0:02:55.8]} 6. a4 {[%clk 0:02:11.5]} 6... g5 {[%clk
0:02:53.6]} 7. Na3 {[%clk 0:02:08.7]} 7... Bg7 {[%clk 0:02:53.1]} 8. Nc2 {[%clk
0:02:08.1]} 8... Be6 {[%clk 0:02:30.1]} 9. Ba2 {[%clk 0:02:00.8]} 9... d5 {[%clk
0:02:16.4]} 10. Qe2 {[%clk 0:01:50.3]} 10... O-O {[%clk 0:02:11.2]} 11. h4
{[%clk 0:01:30.7]} 11... g4 {[%clk 0:01:59.4]} 12. Nh2 {[%clk 0:01:30.6]} 12...
Qd7 {[%clk 0:01:51.1]} 13. Nf1 {[%clk 0:01:29.4]} 13... Rad8 {[%clk 0:01:46.1]}
14. Ng3 {[%clk 0:01:26.6]} 14... Rfe8 {[%clk 0:01:20.7]} 15. O-O {[%clk
0:01:24.1]} 15... a5 {[%clk 0:01:04.3]} 16. Bb1 {[%clk 0:01:02.8]} 16... d4
{[%clk 0:00:46]} 17. c4 {[%clk 0:00:52.8]} 17... Qe7 {[%clk 0:00:42.9]} 18. Bd2
{[%clk 0:00:51.3]} 18... Nd7 {[%clk 0:00:41.7]} 19. h5 {[%clk 0:00:14.1]} 19...
Nc5 {[%clk 0:00:41.6]} 20. Ra3 {[%clk 0:00:13.8]} 20... b6 {[%clk 0:00:41.7]}
21. b4 {[%clk 0:00:12.2]} 21... axb4 {[%clk 0:00:40.1]} 22. Nxb4 {[%clk
0:00:13.1]} 22... Nxb4 {[%clk 0:00:35.9]} 23. Bxb4 {[%clk 0:00:14]} 23... Ra8
{[%clk 0:00:33.8]} 24. Bc2 {[%clk 0:00:13.8]} 24... Qh4 {[%clk 0:00:30.3]} 25.
Rfa1 {[%clk 0:00:13.6]} 25... Bf8 {[%clk 0:00:27.2]} 26. Be1 {[%clk 0:00:11.5]}
26... Qf6 {[%clk 0:00:24]} 27. R3a2 {[%clk 0:00:11.4]} 27... Nb7 {[%clk
0:00:23.1]} 28. Bd1 {[%clk 0:00:09.7]} 28... Na5 {[%clk 0:00:22.7]} 29. Nf5
{[%clk 0:00:09.5]} 29... Bxf5 {[%clk 0:00:17.8]} 30. exf5 {[%clk 0:00:05.6]}
30... g3 {[%clk 0:00:16.5]} 31. Qg4+ {[%clk 0:00:04.1]} 31... Kh8 {[%clk
0:00:13.2]} 32. Bf3 {[%clk 0:00:05]} 32... gxf2+ {[%clk 0:00:09.7]} 33. Bxf2
{[%clk 0:00:05.9]} 33... Rad8 {[%clk 0:00:08.6]} 34. Bh4 {[%clk 0:00:05.9]}
34... Qg7 {[%clk 0:00:08.5]} 35. Qxg7+ {[%clk 0:00:04.7]} 35... Kxg7 {[%clk
0:00:09.4]} 36. f6+ {[%clk 0:00:03.8]} 36... Kh8 {[%clk 0:00:07.8]} 37. Be4
{[%clk 0:00:04.7]} 37... Bb4 {[%clk 0:00:07.1]} 38. Rf1 {[%clk 0:00:04.2]} 38...
Rg8 {[%clk 0:00:06.1]} 39. Rf3 {[%clk 0:00:03]} 39... Rg4 {[%clk 0:00:05.9]} 40.
g3 {[%clk 0:00:02.9]} 40... Nxc4 {[%clk 0:00:04.3]} 0-1

[Event "*** Titled Tuesday Blitz"]
[Site "Chess.com"]
[Date "2020.03.03"]
[Round "3"]
[White "SantoBlue"]
[Black "Shant_Sargsyan"]
[Result "1-0"]
[WhiteElo "2763"]
[BlackElo "3015"]
[TimeControl "180+1"]
[EndTime "9:30:44 PST"]
[Termination "SantoBlue won by resignation"]

1. e4 {[%clk 0:03:00.1]} 1... e5 {[%clk 0:03:00.1]} 2. Nf3 {[%clk 0:03:00]} 2...
Nc6 {[%clk 0:03:00.8]} 3. Bb5 {[%clk 0:03:00.7]} 3... a6 {[%clk 0:03:01.5]} 4.
Ba4 {[%clk 0:03:00.8]} 4... Nf6 {[%clk 0:03:02.3]} 5. O-O {[%clk 0:03:00.9]}
5... Nxe4 {[%clk 0:03:03.1]} 6. d4 {[%clk 0:02:59.7]} 6... b5 {[%clk 0:03:03.6]}
7. Bb3 {[%clk 0:03:00.1]} 7... d5 {[%clk 0:03:04.3]} 8. dxe5 {[%clk 0:02:59.4]}
8... Be6 {[%clk 0:03:04.6]} 9. Nbd2 {[%clk 0:02:56.2]} 9... Be7 {[%clk
0:03:04.6]} 10. c3 {[%clk 0:02:55.8]} 10... O-O {[%clk 0:03:05]} 11. Bc2 {[%clk
0:02:55.8]} 11... f5 {[%clk 0:03:05.5]} 12. Nb3 {[%clk 0:02:46.5]} 12... Qd7
{[%clk 0:03:05.7]} 13. Nfd4 {[%clk 0:02:45]} 13... Nxd4 {[%clk 0:03:05.5]} 14.
Nxd4 {[%clk 0:02:44.7]} 14... c5 {[%clk 0:03:06.1]} 15. Nxe6 {[%clk 0:02:45.3]}
15... Qxe6 {[%clk 0:03:07]} 16. f3 {[%clk 0:02:43.7]} 16... Ng5 {[%clk
0:03:07.4]} 17. Bxg5 {[%clk 0:02:44.6]} 17... Bxg5 {[%clk 0:03:08.3]} 18. f4
{[%clk 0:02:45.5]} 18... Be7 {[%clk 0:03:06.8]} 19. a4 {[%clk 0:02:45.9]} 19...
c4 {[%clk 0:03:07.3]} 20. b4 {[%clk 0:02:18.7]} 20... a5 {[%clk 0:02:47.3]} 21.
axb5 {[%clk 0:02:01.7]} 21... axb4 {[%clk 0:02:47.5]} 22. cxb4 {[%clk
0:01:59.9]} 22... Bxb4 {[%clk 0:02:47.8]} 23. Qd4 {[%clk 0:01:43.8]} 23... Rac8
{[%clk 0:02:46.6]} 24. Kh1 {[%clk 0:01:37.3]} 24... Bc5 {[%clk 0:02:45.7]} 25.
Qd1 {[%clk 0:01:37.8]} 25... d4 {[%clk 0:02:40.6]} 26. Ra6 {[%clk 0:01:34.4]}
26... Qd5 {[%clk 0:02:39.4]} 27. Bb1 {[%clk 0:01:28.5]} 27... d3 {[%clk
0:02:37.9]} 28. Ba2 {[%clk 0:01:27.8]} 28... Kh8 {[%clk 0:02:26.2]} 29. b6
{[%clk 0:01:19]} 29... Ra8 {[%clk 0:02:02.5]} 30. Qa4 {[%clk 0:01:15.3]} 30...
Rxa6 {[%clk 0:01:41.1]} 31. Qxa6 {[%clk 0:01:14.9]} 31... d2 {[%clk 0:01:41.4]}
32. Rd1 {[%clk 0:01:04.2]} 32... g5 {[%clk 0:01:05.4]} 33. Bxc4 {[%clk
0:00:35.5]} 33... Qc6 {[%clk 0:01:01.9]} 34. b7 {[%clk 0:00:25.1]} 34... Qxa6
{[%clk 0:00:35.3]} 35. Bxa6 {[%clk 0:00:24.8]} 35... Bb4 {[%clk 0:00:36]} 36.
fxg5 {[%clk 0:00:19.4]} 36... Kg7 {[%clk 0:00:34.8]} 37. e6 {[%clk 0:00:19.7]}
37... Rd8 {[%clk 0:00:28.9]} 38. Bb5 {[%clk 0:00:12.5]} 38... Kf8 {[%clk
0:00:24.7]} 39. Bd7 {[%clk 0:00:12]} 39... Rb8 {[%clk 0:00:17.5]} 40. Bc8 {[%clk
0:00:11.5]} 40... Ke7 {[%clk 0:00:17.4]} 41. Kg1 {[%clk 0:00:12]} 41... Kd6
{[%clk 0:00:12.7]} 42. Kf1 {[%clk 0:00:12.3]} 42... Ke5 {[%clk 0:00:12.9]} 43.
Ke2 {[%clk 0:00:12.3]} 43... Kd6 {[%clk 0:00:09.8]} 44. h4 {[%clk 0:00:11.9]}
44... f4 {[%clk 0:00:10.6]} 45. h5 {[%clk 0:00:12]} 45... Ke7 {[%clk 0:00:10.9]}
46. h6 {[%clk 0:00:11.5]} 46... Bc3 {[%clk 0:00:10.2]} 47. Kd3 {[%clk
0:00:10.3]} 47... Bb4 {[%clk 0:00:10.4]} 48. Rxd2 {[%clk 0:00:08.9]} 48... Bxd2
{[%clk 0:00:10.8]} 49. Kxd2 {[%clk 0:00:09.8]} 49... f3 {[%clk 0:00:11.5]} 50.
gxf3 {[%clk 0:00:09.9]} 50... Rxb7 {[%clk 0:00:11.5]} 51. Bxb7 {[%clk
0:00:09.7]} 51... Kxe6 {[%clk 0:00:12.4]} 52. Be4 {[%clk 0:00:10.6]} 52... Ke5
{[%clk 0:00:12.8]} 53. Ke3 {[%clk 0:00:11.5]} 1-0

[Event "*** Titled Tuesday Blitz"]
[Site "Chess.com"]
[Date "2020.03.03"]
[Round "3"]
[White "JussupowFan"]
[Black "MixMasterChess"]
[Result "1-0"]
[WhiteElo "2342"]
[BlackElo "2097"]
[TimeControl "180+1"]
[EndTime "9:30:46 PST"]
[Termination "JussupowFan won on time"]

1. d4 {[%clk 0:03:00.2]} 1... d5 {[%clk 0:02:59.4]} 2. c4 {[%clk 0:03:00.3]}
2... c6 {[%clk 0:03:00]} 3. Nf3 {[%clk 0:03:00]} 3... Nf6 {[%clk 0:03:00.1]} 4.
Nc3 {[%clk 0:03:00.2]} 4... dxc4 {[%clk 0:03:00.3]} 5. a4 {[%clk 0:02:59.9]}
5... Bf5 {[%clk 0:03:00]} 6. e3 {[%clk 0:02:59.6]} 6... e6 {[%clk 0:03:00.4]} 7.
Bxc4 {[%clk 0:02:59.6]} 7... Bb4 {[%clk 0:03:00.9]} 8. O-O {[%clk 0:02:59.4]}
8... O-O {[%clk 0:03:00.7]} 9. Nh4 {[%clk 0:02:58.9]} 9... Bg6 {[%clk
0:02:57.7]} 10. f3 {[%clk 0:02:55.4]} 10... Nbd7 {[%clk 0:02:46.2]} 11. Nxg6
{[%clk 0:02:54.7]} 11... hxg6 {[%clk 0:02:45.5]} 12. e4 {[%clk 0:02:53.2]} 12...
e5 {[%clk 0:02:41.8]} 13. Na2 {[%clk 0:02:26.7]} 13... Bd6 {[%clk 0:02:27.8]}
14. Be3 {[%clk 0:02:15.6]} 14... Qb6 {[%clk 0:02:20.9]} 15. Kh1 {[%clk
0:02:07.4]} 15... exd4 {[%clk 0:02:19]} 16. Bxd4 {[%clk 0:02:08.3]} 16... Bc5
{[%clk 0:02:19.1]} 17. Bc3 {[%clk 0:02:04.6]} 17... Qc7 {[%clk 0:02:14.6]} 18.
b4 {[%clk 0:02:03.6]} 18... Bd6 {[%clk 0:02:08.9]} 19. g3 {[%clk 0:02:01.3]}
19... Be5 {[%clk 0:02:08.6]} 20. f4 {[%clk 0:01:56.7]} 20... Bxc3 {[%clk
0:02:07.3]} 21. Nxc3 {[%clk 0:01:57.6]} 21... a5 {[%clk 0:02:05.8]} 22. Qb3
{[%clk 0:01:49.8]} 22... axb4 {[%clk 0:01:42.1]} 23. Qxb4 {[%clk 0:01:50.7]}
23... Ng4 {[%clk 0:01:42.1]} 24. Rfe1 {[%clk 0:01:24.1]} 24... Qa5 {[%clk
0:01:25.2]} 25. Qxa5 {[%clk 0:01:17.5]} 25... Rxa5 {[%clk 0:01:24.6]} 26. Rab1
{[%clk 0:01:16.9]} 26... Rc5 {[%clk 0:01:14]} 27. Rb4 {[%clk 0:01:10]} 27... b6
{[%clk 0:01:10.2]} 28. e5 {[%clk 0:01:03.1]} 28... Nf2+ {[%clk 0:00:57]} 29. Kg2
{[%clk 0:01:02.6]} 29... Nd3 {[%clk 0:00:57.6]} 30. Bxd3 {[%clk 0:01:01.4]}
30... Rxc3 {[%clk 0:00:58.2]} 31. Be4 {[%clk 0:00:58.8]} 31... c5 {[%clk
0:00:58]} 32. Rb2 {[%clk 0:00:53.7]} 32... Rb8 {[%clk 0:00:46.9]} 33. Reb1
{[%clk 0:00:51.4]} 33... g5 {[%clk 0:00:31.3]} 34. Bc6 {[%clk 0:00:47.4]} 34...
Nf8 {[%clk 0:00:29.4]} 35. fxg5 {[%clk 0:00:43.3]} 35... Ne6 {[%clk 0:00:23.7]}
36. h4 {[%clk 0:00:39.1]} 36... Nd4 {[%clk 0:00:23]} 37. Rxb6 {[%clk 0:00:31]}
37... Rxb6 {[%clk 0:00:22.2]} 38. Rxb6 {[%clk 0:00:31.9]} 38... Ra3 {[%clk
0:00:22.6]} 39. Bd7 {[%clk 0:00:29.1]} 39... Ne2 {[%clk 0:00:20.4]} 40. g6
{[%clk 0:00:12.6]} 40... fxg6 {[%clk 0:00:16.8]} 41. e6 {[%clk 0:00:10.2]} 41...
Kf8 {[%clk 0:00:06.8]} 42. Rb8+ {[%clk 0:00:10.4]} 42... Ke7 {[%clk 0:00:06.7]}
43. Re8+ {[%clk 0:00:11.3]} 43... Kd6 {[%clk 0:00:07]} 44. Bb5 {[%clk
0:00:12.2]} 44... Nxg3 {[%clk 0:00:05.6]} 45. e7 {[%clk 0:00:13.1]} 45... Nf5
{[%clk 0:00:05.7]} 46. Rc8 {[%clk 0:00:06.2]} 46... Kxe7 {[%clk 0:00:04.9]} 47.
Rxc5 {[%clk 0:00:05.9]} 47... Nxh4+ {[%clk 0:00:05]} 48. Kf2 {[%clk 0:00:05.3]}
48... Nf5 {[%clk 0:00:05.4]} 49. Rc7+ {[%clk 0:00:04]} 49... Kf6 {[%clk
0:00:05]} 50. Ra7 {[%clk 0:00:04.9]} 50... Nd4 {[%clk 0:00:04]} 51. Bd7 {[%clk
0:00:03.3]} 51... Nc2 {[%clk 0:00:01.5]} 52. Ke2 {[%clk 0:00:02.5]} 52... Nb4
{[%clk 0:00:01.6]} 53. Kd2 {[%clk 0:00:02.3]} 1-0

[Event "*** Titled Tuesday Blitz"]
[Site "Chess.com"]
[Date "2020.03.03"]
[Round "3"]
[White "Keranke"]
[Black "Sashadav97"]
[Result "1-0"]
[WhiteElo "2799"]
[BlackElo "2575"]
[TimeControl "180+1"]
[EndTime "9:30:51 PST"]
[Termination "Keranke won on time"]

1. d4 {[%clk 0:03:00.9]} 1... Nf6 {[%clk 0:02:59.7]} 2. c4 {[%clk 0:03:00.6]}
2... e6 {[%clk 0:03:00.1]} 3. g3 {[%clk 0:03:00.8]} 3... d5 {[%clk 0:02:59.7]}
4. Bg2 {[%clk 0:03:01.2]} 4... Bb4+ {[%clk 0:02:59]} 5. Nd2 {[%clk 0:03:00.8]}
5... O-O {[%clk 0:02:58.3]} 6. Qc2 {[%clk 0:03:00.4]} 6... b6 {[%clk 0:02:56.2]}
7. Nf3 {[%clk 0:02:58.3]} 7... Bb7 {[%clk 0:02:56.3]} 8. O-O {[%clk 0:02:58.8]}
8... Nbd7 {[%clk 0:02:53.7]} 9. cxd5 {[%clk 0:02:50.6]} 9... exd5 {[%clk
0:02:54.6]} 10. Ne5 {[%clk 0:02:51.2]} 10... Bd6 {[%clk 0:02:38.1]} 11. Ndf3
{[%clk 0:02:47.1]} 11... c5 {[%clk 0:02:36.1]} 12. Bf4 {[%clk 0:02:31.1]} 12...
Qe7 {[%clk 0:02:29.6]} 13. Nxd7 {[%clk 0:02:27.2]} 13... Qxd7 {[%clk 0:02:24.1]}
14. Bxd6 {[%clk 0:02:25.8]} 14... Qxd6 {[%clk 0:02:25]} 15. dxc5 {[%clk
0:02:26.3]} 15... bxc5 {[%clk 0:02:24]} 16. Rfd1 {[%clk 0:02:26.4]} 16... Qb6
{[%clk 0:02:16.6]} 17. Rac1 {[%clk 0:02:22.1]} 17... Rac8 {[%clk 0:01:51.2]} 18.
Ne5 {[%clk 0:02:21.8]} 18... Rc7 {[%clk 0:01:45.2]} 19. Nd3 {[%clk 0:02:18.1]}
19... Ba6 {[%clk 0:01:13.4]} 20. Nf4 {[%clk 0:02:04.7]} 20... d4 {[%clk
0:01:09.5]} 21. b3 {[%clk 0:01:57.4]} 21... c4 {[%clk 0:01:06.7]} 22. bxc4
{[%clk 0:01:38.4]} 22... Rxc4 {[%clk 0:01:05.9]} 23. Qd2 {[%clk 0:01:37.4]}
23... h6 {[%clk 0:00:52]} 24. Rxc4 {[%clk 0:01:27.8]} 24... Bxc4 {[%clk
0:00:50.8]} 25. a3 {[%clk 0:01:14.9]} 25... Re8 {[%clk 0:00:38]} 26. Bf3 {[%clk
0:01:03.7]} 26... Rd8 {[%clk 0:00:20.6]} 27. Rc1 {[%clk 0:00:54.8]} 27... Ba6
{[%clk 0:00:19.6]} 28. Rc6 {[%clk 0:00:54.3]} 28... Qb5 {[%clk 0:00:18.5]} 29.
Rc7 {[%clk 0:00:48.1]} 29... Qb6 {[%clk 0:00:17.4]} 30. Rc6 {[%clk 0:00:48.2]}
30... Qb5 {[%clk 0:00:17.6]} 31. Qc1 {[%clk 0:00:32]} 31... Bb7 {[%clk
0:00:17.2]} 32. Rc5 {[%clk 0:00:31.7]} 32... Qb6 {[%clk 0:00:17.4]} 33. Bxb7
{[%clk 0:00:32]} 33... Qxb7 {[%clk 0:00:18.3]} 34. Rc7 {[%clk 0:00:32.7]} 34...
Qb6 {[%clk 0:00:18.1]} 35. Qc4 {[%clk 0:00:32.9]} 35... Rf8 {[%clk 0:00:11.1]}
36. Nd3 {[%clk 0:00:33.1]} 36... Qd6 {[%clk 0:00:09.5]} 37. a4 {[%clk
0:00:25.4]} 37... a6 {[%clk 0:00:09.4]} 38. a5 {[%clk 0:00:23.4]} 38... Nd7
{[%clk 0:00:08.6]} 39. Rc6 {[%clk 0:00:22.4]} 39... Qe7 {[%clk 0:00:08.8]} 40.
Rxa6 {[%clk 0:00:18.8]} 40... Qxe2 {[%clk 0:00:08.3]} 41. Qxd4 {[%clk
0:00:19.4]} 41... Nf6 {[%clk 0:00:07.6]} 42. Rd6 {[%clk 0:00:11.8]} 42... Re8
{[%clk 0:00:07.6]} 43. Rd8 {[%clk 0:00:11.9]} 43... Qd1+ {[%clk 0:00:06.9]} 44.
Kg2 {[%clk 0:00:11.8]} 44... Rxd8 {[%clk 0:00:06.8]} 45. Qxd8+ {[%clk
0:00:12.7]} 45... Kh7 {[%clk 0:00:07.7]} 46. Qd4 {[%clk 0:00:12.5]} 46... h5
{[%clk 0:00:06.2]} 47. h3 {[%clk 0:00:11.1]} 47... Kg8 {[%clk 0:00:03.2]} 48. a6
{[%clk 0:00:11.6]} 48... Qd2 {[%clk 0:00:02.1]} 49. a7 {[%clk 0:00:11.4]} 49...
Qa5 {[%clk 0:00:01.4]} 50. Ne5 {[%clk 0:00:08.5]} 50... Kh7 {[%clk 0:00:02]} 51.
Nc6 {[%clk 0:00:07.4]} 51... Qa6 {[%clk 0:00:02.2]} 52. Qc5 {[%clk 0:00:04.3]}
52... Qb7 {[%clk 0:00:02.4]} 53. Kh2 {[%clk 0:00:04]} 53... g6 {[%clk
0:00:02.2]} 54. Nd8 {[%clk 0:00:04.3]} 1-0